fUST/lending_fUST_20240826
["ID","MTS","AMOUNT","RATE_DAILY","PERIOD"]
[336031443,1724672848252,-446.83384317,0.00012983,2]
[336031500,1724673032593,-300.0,0.00012354,2]
[336031502,1724673032602,-1314.8,0.00012355,2]
[336031504,1724673032611,-500.0,0.00012355,2]
[336031506,1724673032621,-763.25,0.00012355,2]
[336031508,1724673032630,-500.0,0.00012355,2]
[336031510,1724673032639,-500.0,0.00012355,2]
[336031512,1724673032648,-1570.54,0.00012355,2]
[336031514,1724673032657,-585.65,0.00012355,2]
[336031516,1724673032667,-769.05,0.00012355,2]
[336031518,1724673032676,-521.43,0.00012355,2]
[336031519,1724673032686,-500.0,0.00012355,2]
[336031520,1724673032695,-500.0,0.00012355,2]
[336031521,1724673032705,-4799.40047857,0.00012355,2]
[336031522,1724673032716,-11564.74693409,0.00012355,2]
[336031525,1724673032729,-305.84891193,0.00012355,2]
[336031600,1724673038797,-11517.64367541,0.00012355,2]
[336031602,1724673038807,-823.22,0.00012355,2]
[336031604,1724673038816,-1244.0,0.00012355,2]
[336031606,1724673038826,-1207.0,0.00012355,2]
[336031608,1724673038837,-500.0,0.00012355,2]
[336031610,1724673038847,-500.0,0.00012355,2]
[336031612,1724673038857,-534.16,0.00012355,2]
[336031614,1724673038868,-500.0,0.00012355,2]
[336031616,1724673038878,-500.0,0.00012355,2]
[336031618,1724673038888,-500.0,0.00012355,2]
[336031620,1724673038897,-173.97632459,0.00012355,2]
[336031638,1724673040008,-831.84367541,0.00012355,2]
[336031639,1724673040018,-335.39050983,0.00012355,2]
[336031640,1724673040028,-500.0,0.00012355,2]
[336031641,1724673040038,-583.28,0.00012355,2]
[336031642,1724673040048,-674.41,0.00012355,2]
[336031643,1724673040057,-503.96,0.00012355,2]
[336031644,1724673040066,-500.0,0.00012355,2]
[336031645,1724673040076,-663.64,0.00012355,2]
[336031646,1724673040086,-500.0,0.00012355,2]
[336031647,1724673040095,-500.0,0.00012355,2]
[336031648,1724673040105,-1593.12,0.00012355,2]
[336031649,1724673040113,-500.0,0.00012444,2]
[336031650,1724673040122,-500.0,0.00012444,2]
[336031651,1724673040132,-500.0,0.00012444,2]
[336031652,1724673040141,-203.43796579,0.00012444,2]
[336031653,1724673040150,-500.0,0.00012444,2]
[336031654,1724673040160,-500.0,0.00012444,2]
[336031655,1724673040170,-500.0,0.00012444,2]
[336031656,1724673040179,-500.0,0.00012444,2]
[336031657,1724673040188,-500.0,0.00012444,2]
[336031658,1724673040197,-569.7,0.00012444,2]
[336031659,1724673040207,-500.0,0.00012444,2]
[336031660,1724673040216,-500.0,0.00012444,2]
[336031661,1724673040226,-500.0,0.00012444,2]
[336031662,1724673040236,-524.78,0.00012444,2]
[336031663,1724673040245,-500.0,0.00012444,2]
[336031664,1724673040255,-511.03395608,0.00012444,2]
[336031665,1724673040265,-500.0,0.00012444,2]
[336031666,1724673040275,-525.17762807,0.00012444,2]
[336031668,1724673040286,-762.25,0.00012444,2]
[336031670,1724673040295,-500.0,0.00012444,2]
[336031672,1724673040305,-500.0,0.00012444,2]
[336031673,1724673040314,-516.17,0.00012444,2]
[336031674,1724673040324,-500.0,0.00012444,2]
[336031675,1724673040333,-500.0,0.00012444,2]
[336031676,1724673040342,-500.0,0.00012444,2]
[336031677,1724673040351,-500.0,0.00012444,2]
[336031678,1724673040361,-1075.81,0.00012444,2]
[336031679,1724673040372,-500.0,0.00012444,2]
[336031680,1724673040381,-500.0,0.00012444,2]
[336031681,1724673040391,-500.0,0.00012444,2]
[336031682,1724673040401,-502.75193675,0.00012444,2]
[336031683,1724673040411,-500.0,0.00012444,2]
[336031684,1724673040421,-206.16780181,0.00012444,2]
[336031686,1724673040431,-592.33934938,0.00012444,2]
[336031688,1724673040441,-500.0,0.00012444,2]
[336031689,1724673040451,-500.0,0.00012444,2]
[336031691,1724673040462,-770.91,0.00012444,2]
[336031693,1724673040472,-500.0,0.00012444,2]
[336031695,1724673040481,-390.99013902,0.00012444,2]
[336031702,1724673041698,-657.05986098,0.00012444,2]
[336031703,1724673041708,-500.0,0.00012444,2]
[336031704,1724673041718,-500.0,0.00012444,2]
[336031705,1724673041727,-696.0,0.00012444,2]
[336031706,1724673041738,-500.0,0.00012444,2]
[336031707,1724673041747,-500.0,0.00012444,2]
[336031708,1724673041757,-500.0,0.00012444,2]
[336031709,1724673041766,-500.0,0.00012444,2]
[336031710,1724673041775,-500.0,0.00012444,2]
[336031711,1724673041787,-500.0,0.00012444,2]
[336031712,1724673041797,-500.0,0.00012444,2]
[336031713,1724673041806,-500.0,0.00012444,2]
[336031714,1724673041815,-500.0,0.00012444,2]
[336031715,1724673041826,-500.0,0.00012444,2]
[336031716,1724673041836,-500.0,0.00012444,2]
[336031717,1724673041845,-500.0,0.00012444,2]
[336031718,1724673041854,-500.0,0.00012444,2]
[336031719,1724673041867,-500.0,0.00012444,2]
[336031720,1724673041876,-500.0,0.00012444,2]
[336031721,1724673041885,-151.81298738,0.00012444,2]
[336031722,1724673041894,-500.0,0.00012444,2]
[336031723,1724673041904,-384.31784247,0.00012444,2]
[336031724,1724673041914,-500.0,0.00012444,2]
[336031725,1724673041923,-500.0,0.00012444,2]
[336031726,1724673041932,-525.39,0.00012444,2]
[336031727,1724673041941,-500.0,0.00012444,2]
[336031728,1724673041951,-552.99,0.00012444,2]
[336031729,1724673041960,-1314.8,0.00012629,2]
[336031730,1724673041970,-500.0,0.00012629,2]
[336031731,1724673041980,-763.25,0.00012629,2]
[336031732,1724673041989,-500.0,0.00012629,2]
[336031733,1724673041998,-500.0,0.00012629,2]
[336031734,1724673042008,-1570.54,0.00012629,2]
[336031735,1724673042017,-227.67683199,0.00012629,2]
[336031736,1724673042218,-357.97316801,0.00012629,2]
[336031737,1724673042228,-769.05,0.00012629,2]
[336031738,1724673042239,-521.43,0.00012629,2]
[336031739,1724673042251,-500.0,0.00012629,2]
[336031740,1724673042261,-500.0,0.00012629,2]
[336031741,1724673042270,-8222.77942319,0.00012629,2]
[336031742,1724673042282,-19964.86057681,0.00012629,2]
[336031743,1724673042291,-823.22,0.00012629,2]
[336031744,1724673042300,-1244.0,0.00012629,2]
[336031745,1724673042310,-1207.0,0.00012629,2]
[336031746,1724673042320,-500.0,0.00012629,2]
[336031747,1724673042330,-500.0,0.00012629,2]
[336031748,1724673042339,-534.16,0.00012629,2]
[336031749,1724673042349,-500.0,0.00012629,2]
[336031750,1724673042358,-500.0,0.00012629,2]
[336031751,1724673042367,-500.0,0.00012629,2]
[336031752,1724673042377,-1005.82,0.00012629,2]
[336031753,1724673042388,-500.0,0.00012629,2]
[336031754,1724673042398,-583.28,0.00012629,2]
[336031755,1724673042409,-674.41,0.00012629,2]
[336031756,1724673042420,-503.96,0.00012629,2]
[336031757,1724673042430,-500.83748416,0.00012629,2]
[336031758,1724673042440,-663.64,0.00012629,2]
[336031759,1724673042451,-500.0,0.00012629,2]
[336031760,1724673042463,-500.0,0.00012629,2]
[336031761,1724673042474,-1593.12,0.00012629,2]
[336031762,1724673042485,-526.36716605,0.00012718,2]
[336031763,1724673042497,-73.88362799,0.00012718,2]
[336031764,1724673042507,-384.54078142,0.00012718,2]
[336031765,1724673042517,-500.0,0.00012718,2]
[336031766,1724673042527,-500.0,0.00012718,2]
[336031767,1724673042537,-231.35965788,0.00012718,2]
[336031768,1724673042546,-500.0,0.00012718,2]
[336031769,1724673042556,-500.0,0.00012718,2]
[336031770,1724673042565,-500.0,0.00012718,2]
[336031771,1724673042575,-569.7,0.00012718,2]
[336031772,1724673042584,-500.0,0.00012718,2]
[336031773,1724673042593,-500.0,0.00012718,2]
[336031774,1724673042603,-500.0,0.00012718,2]
[336031775,1724673042614,-524.78,0.00012718,2]
[336031776,1724673042624,-500.0,0.00012718,2]
[336031777,1724673042633,-500.0,0.00012718,2]
[336031778,1724673042643,-762.25,0.00012718,2]
[336031779,1724673042653,-500.0,0.00012718,2]
[336031780,1724673042662,-500.0,0.00012718,2]
[336031781,1724673042672,-516.17,0.00012718,2]
[336031782,1724673042681,-500.0,0.00012718,2]
[336031783,1724673042691,-500.0,0.00012718,2]
[336031784,1724673042701,-501.82731712,0.00012718,2]
[336031785,1724673042711,-500.0,0.00012718,2]
[336031786,1724673042721,-500.0,0.00012718,2]
[336031787,1724673042731,-500.0,0.00012718,2]
[336031788,1724673042741,-500.0,0.00012718,2]
[336031789,1724673042750,-500.0,0.00012718,2]
[336031790,1724673042760,-500.0,0.00012718,2]
[336031791,1724673042770,-770.91,0.00012718,2]
[336031792,1724673042780,-500.0,0.00012718,2]
[336031793,1724673042794,-1048.05,0.00012718,2]
[336031794,1724673042804,-500.0,0.00012718,2]
[336031795,1724673042813,-500.0,0.00012718,2]
[336031796,1724673042823,-696.0,0.00012718,2]
[336031797,1724673042833,-500.0,0.00012718,2]
[336031798,1724673042842,-500.0,0.00012718,2]
[336031799,1724673042851,-500.0,0.00012718,2]
[336031800,1724673042861,-500.0,0.00012718,2]
[336031801,1724673042874,-500.0,0.00012718,2]
[336031802,1724673042884,-500.0,0.00012718,2]
[336031803,1724673042896,-500.0,0.00012718,2]
[336031804,1724673042906,-500.0,0.00012718,2]
[336031805,1724673042916,-500.0,0.00012718,2]
[336031806,1724673042927,-500.0,0.00012718,2]
[336031807,1724673042936,-500.0,0.00012718,2]
[336031808,1724673042946,-500.0,0.00012718,2]
[336031809,1724673042955,-500.0,0.00012718,2]
[336031810,1724673042965,-500.0,0.00012718,2]
[336031811,1724673042974,-500.0,0.00012718,2]
[336031812,1724673042984,-500.0,0.00012718,2]
[336031813,1724673042994,-500.74322692,0.00012718,2]
[336031814,1724673043003,-500.0,0.00012718,2]
[336031815,1724673043013,-525.39,0.00012718,2]
[336031816,1724673043023,-500.0,0.00012718,2]
[336031817,1724673043034,-552.99,0.00012718,2]
[336031818,1724673043043,-1075.81,0.00012778,2]
[336031819,1724673043053,-500.0,0.00012778,2]
[336031820,1724673043063,-638.3,0.00012779,2]
[336031821,1724673043073,-500.0,0.00012779,2]
[336031822,1724673043084,-1270.22,0.00012779,2]
[336031823,1724673043093,-500.0,0.00012779,2]
[336031824,1724673043103,-500.0,0.00012779,2]
[336031825,1724673043113,-500.0,0.00012779,2]
[336031826,1724673043123,-619.47,0.00012779,2]
[336031827,1724673043133,-1133.3,0.00012779,2]
[336031828,1724673043143,-1001.26,0.00012779,2]
[336031829,1724673043151,-566.38488264,0.00012779,2]
[336031830,1724673043161,-500.0,0.00012779,2]
[336031831,1724673043172,-500.0,0.00012779,2]
[336031832,1724673043182,-528.48,0.00012779,2]
[336031833,1724673043192,-500.0,0.00012779,2]
[336031834,1724673043201,-724.17,0.00012779,2]
[336031835,1724673043213,-500.0,0.00012779,2]
[336031837,1724673043223,-508.99,0.00012779,2]
[336031838,1724673043232,-615.61381898,0.00012779,2]
[336031839,1724673043242,-500.0,0.00012779,2]
[336031840,1724673043251,-500.0,0.00012779,2]
[336031841,1724673043261,-500.0,0.00012779,2]
[336031844,1724673043426,-500.0,0.00012779,2]
[336031845,1724673043436,-500.0,0.00012779,2]
[336031847,1724673043445,-500.0,0.00012779,2]
[336031849,1724673043455,-500.0,0.00012779,2]
[336031850,1724673043464,-743.9,0.00012779,2]
[336031851,1724673043474,-500.0,0.00012779,2]
[336031852,1724673043483,-561.66,0.00012779,2]
[336031853,1724673043493,-500.97078527,0.00012779,2]
[336031854,1724673043502,-1027.6,0.00012779,2]
[336031855,1724673043511,-588.56,0.00012779,2]
[336031856,1724673043521,-500.0,0.00012779,2]
[336031857,1724673043531,-988.54,0.00012779,2]
[336031858,1724673043540,-500.0,0.00012779,2]
[336031860,1724673043550,-584.56815414,0.00012779,2]
[336031861,1724673043559,-694.49,0.00012779,2]
[336031862,1724673043569,-500.0,0.00012779,2]
[336031863,1724673043578,-717.49,0.00012884,2]
[336031864,1724673043588,-732.99,0.00012884,2]
[336031865,1724673043597,-1343.86,0.00012884,2]
[336031867,1724673043606,-500.0,0.00012884,2]
[336031868,1724673043616,-500.0,0.00012884,2]
[336031869,1724673043625,-592.9,0.00012884,2]
[336031870,1724673043634,-500.0,0.00012884,2]
[336031871,1724673043643,-796.87,0.00012884,2]
[336031872,1724673043652,-25690.63203844,0.00012885,2]
[336031873,1724673043662,-500.0,0.00012885,2]
[336031874,1724673043671,-1075.81,0.00012885,2]
[336031875,1724673043680,-500.0,0.00012885,2]
[336031876,1724673043690,-641.3,0.00012885,2]
[336031877,1724673043699,-782.67,0.00012885,2]
[336031878,1724673043708,-504.74,0.00012885,2]
[336031879,1724673043717,-540.82,0.00012885,2]
[336031880,1724673043726,-500.0,0.00012885,2]
[336031881,1724673043736,-651.51,0.00012885,2]
[336031882,1724673043745,-500.0,0.00012885,2]
[336031883,1724673043755,-4000.6,0.00012885,2]
[336031884,1724673043766,-846.75,0.00012885,2]
[336031885,1724673043775,-210.39215594,0.00012886,2]
[336031886,1724673043788,-1075.81,0.00012895,2]
[336031887,1724673043799,-1075.81,0.00012895,2]
[336031888,1724673043808,-500.0,0.00012895,2]
[336031889,1724673043817,-500.0,0.00012895,2]
[336031890,1724673043827,-4000.6,0.00012895,2]
[336031891,1724673043837,-4000.6,0.00012895,2]
[336031892,1724673043847,-1075.81,0.00012896,2]
[336031893,1724673043857,-500.0,0.00012896,2]
[336031894,1724673043868,-4000.6,0.00012896,2]
[336031895,1724673043878,-500.0,0.00012897,2]
[336031896,1724673043887,-589.17,0.00012897,2]
[336031897,1724673043898,-2118.74,0.00012897,2]
[336031898,1724673043907,-824.7,0.00012897,2]
[336031899,1724673043916,-638.96,0.00012897,2]
[336031900,1724673043925,-500.0,0.00012897,2]
[336031901,1724673043935,-500.0,0.00012897,2]
[336031902,1724673043944,-780.5,0.00012897,2]
[336031903,1724673043954,-1023.73,0.00012897,2]
[336031904,1724673043965,-835.24,0.00012897,2]
[336031905,1724673043974,-787.07,0.00012897,2]
[336031906,1724673043985,-543.51,0.00012897,2]
[336031907,1724673043995,-500.0,0.00012897,2]
[336031908,1724673044004,-500.0,0.00012897,2]
[336031909,1724673044015,-852.94,0.00012897,2]
[336031910,1724673044025,-1149.35,0.00012897,2]
[336031911,1724673044034,-1140.37,0.00012897,2]
[336031912,1724673044044,-927.74,0.00012897,2]
[336031913,1724673044055,-803.75,0.00012897,2]
[336031914,1724673044065,-500.0,0.00012897,2]
[336031915,1724673044076,-500.0,0.00012897,2]
[336031916,1724673044086,-500.0,0.00012897,2]
[336031917,1724673044097,-685.95,0.00012897,2]
[336031918,1724673044107,-817.95411776,0.00012898,2]
[336031919,1724673044117,-200.34276677,0.00012898,2]
[336031920,1724673044129,-154.74467129,0.00012898,2]
[336031921,1724673044139,-4000.6,0.00012899,2]
[336031922,1724673044148,-1075.81,0.000129,2]
[336031923,1724673044157,-500.0,0.000129,2]
[336031924,1724673044167,-6100.27929257,0.000129,2]
[336031925,1724673044179,-330.6880762,0.000129,2]
[336031926,1724673044190,-1314.8,0.00012903,2]
[336031927,1724673044199,-500.0,0.00012903,2]
[336031928,1724673044208,-763.25,0.00012903,2]
[336031929,1724673044217,-500.0,0.00012903,2]
[336031930,1724673044227,-294.04419169,0.00012903,2]
[336031931,1724673044236,-1570.54,0.00012903,2]
[336031932,1724673044246,-585.65,0.00012903,2]
[336031933,1724673044255,-769.05,0.00012903,2]
[336031934,1724673044266,-521.43,0.00012903,2]
[336031935,1724673044275,-500.0,0.00012903,2]
[336031936,1724673044285,-500.0,0.00012903,2]
[336031937,1724673044296,-28187.64,0.00012903,2]
[336031938,1724673044308,-823.22,0.00012903,2]
[336031939,1724673044320,-1244.0,0.00012903,2]
[336031940,1724673044332,-1207.0,0.00012903,2]
[336031941,1724673044342,-500.0,0.00012903,2]
[336031942,1724673044352,-534.16,0.00012903,2]
[336031943,1724673044363,-500.0,0.00012903,2]
[336031944,1724673044374,-500.0,0.00012903,2]
[336031945,1724673044385,-1005.82,0.00012903,2]
[336031946,1724673044395,-583.28,0.00012903,2]
[336031947,1724673044405,-674.41,0.00012903,2]
[336031948,1724673044415,-503.96,0.00012903,2]
[336031949,1724673044425,-663.64,0.00012903,2]
[336031950,1724673044436,-500.0,0.00012903,2]
[336031951,1724673044447,-500.0,0.00012903,2]
[336031952,1724673044459,-1593.12,0.00012903,2]
[336031953,1724673044470,-535.23487752,0.00012934,2]
[336031954,1724673044479,-309.42755902,0.00012934,2]
[336031955,1724673044496,-1075.81,0.00012983,2]
[336031956,1724673044505,-405.39697964,0.00012983,2]
[336031957,1724673044516,-500.0,0.00012983,2]
[336031958,1724673044526,-680.31074553,0.00012983,2]
[336031959,1724673044537,-4000.6,0.00012983,2]
[336031960,1724673044549,-28513.9890996,0.00012984,2]
[336031961,1724673044560,-664.71,0.00012984,2]
[336031962,1724673044571,-664.71,0.00012984,2]
[336031963,1724673044582,-1270.22,0.00012984,2]
[336031964,1724673044592,-1270.22,0.00012984,2]
[336031965,1724673044602,-500.0,0.00012984,2]
[336031966,1724673044614,-500.0,0.00012984,2]
[336031968,1724673044625,-1075.81,0.00012984,2]
[336031969,1724673044634,-1075.81,0.00012984,2]
[336031970,1724673044645,-1075.81,0.00012984,2]
[336031971,1724673044655,-213.39127348,0.00012984,2]
[336031972,1724673044665,-500.0,0.00012984,2]
[336031973,1724673044676,-500.0,0.00012984,2]
[336031974,1724673044687,-500.0,0.00012984,2]
[336031975,1724673044697,-1027.6,0.00012984,2]
[336031976,1724673044707,-1027.6,0.00012984,2]
[336031977,1724673044718,-4000.6,0.00012984,2]
[336031978,1724673044730,-4000.6,0.00012984,2]
[336031979,1724673044749,-4000.6,0.00012984,2]
[336031980,1724673044760,-664.71,0.00012985,2]
[336031981,1724673044770,-1270.22,0.00012985,2]
[336031982,1724673044780,-500.0,0.00012985,2]
[336031983,1724673044794,-1027.6,0.00012985,2]
[336031984,1724673044804,-171083.934598,0.00012985,2]
[336031985,1724673044814,-28513.9890996,0.00012986,2]
[336031986,1724673044823,-28513.9890996,0.00012989,2]
[336031987,1724673044835,-208.95368901,0.00012989,2]
[336031988,1724673044844,-4000.6,0.00012989,2]
[336031989,1724673044854,-166.32953229,0.00012991,2]
[336031990,1724673044865,-500.0,0.00012992,2]
[336031991,1724673044874,-500.0,0.00012992,2]
[336031992,1724673044884,-911.33,0.00012992,2]
[336031993,1724673044894,-706.52,0.00012992,2]
[336031994,1724673044903,-500.0,0.00012992,2]
[336031995,1724673044912,-500.0,0.00012992,2]
[336031996,1724673044922,-500.0,0.00012992,2]
[336031997,1724673044931,-500.0,0.00012992,2]
[336031998,1724673044941,-719.09,0.00012992,2]
[336031999,1724673044950,-500.0,0.00012992,2]
[336032000,1724673044960,-476.61024036,0.00012992,2]
[336032001,1724673044969,-500.0,0.00012992,2]
[336032002,1724673044979,-500.0,0.00012992,2]
[336032003,1724673044990,-500.0,0.00012992,2]
[336032004,1724673044999,-500.0,0.00012992,2]
[336032005,1724673045009,-500.0,0.00012992,2]
[336032006,1724673045019,-500.0,0.00012992,2]
[336032007,1724673045028,-500.0,0.00012992,2]
[336032008,1724673045038,-243.66268991,0.00012992,2]
[336032009,1724673045047,-500.0,0.00012992,2]
[336032010,1724673045056,-500.0,0.00012992,2]
[336032011,1724673045065,-500.0,0.00012992,2]
[336032012,1724673045074,-500.0,0.00012992,2]
[336032013,1724673045083,-500.0,0.00012992,2]
[336032014,1724673045092,-500.0,0.00012992,2]
[336032015,1724673045101,-500.0,0.00012992,2]
[336032016,1724673045110,-500.0,0.00012992,2]
[336032017,1724673045119,-611.71324736,0.00012992,2]
[336032018,1724673045127,-500.0,0.00012992,2]
[336032019,1724673045136,-500.0,0.00012992,2]
[336032020,1724673045145,-569.7,0.00012992,2]
[336032021,1724673045154,-500.0,0.00012992,2]
[336032022,1724673045163,-500.0,0.00012992,2]
[336032023,1724673045172,-500.0,0.00012992,2]
[336032024,1724673045180,-524.78,0.00012992,2]
[336032025,1724673045189,-500.0,0.00012992,2]
[336032026,1724673045198,-500.0,0.00012992,2]
[336032027,1724673045207,-762.25,0.00012992,2]
[336032028,1724673045216,-500.0,0.00012992,2]
[336032029,1724673045225,-500.0,0.00012992,2]
[336032030,1724673045234,-516.17,0.00012992,2]
[336032031,1724673045243,-502.14894993,0.00012992,2]
[336032032,1724673045252,-503.29632793,0.00012992,2]
[336032033,1724673045261,-500.0,0.00012992,2]
[336032034,1724673045270,-500.0,0.00012992,2]
[336032035,1724673045279,-500.0,0.00012992,2]
[336032036,1724673045289,-500.0,0.00012992,2]
[336032037,1724673045298,-500.0,0.00012992,2]
[336032038,1724673045306,-500.0,0.00012992,2]
[336032039,1724673045315,-770.91,0.00012992,2]
[336032040,1724673045324,-500.0,0.00012992,2]
[336032041,1724673045333,-1048.05,0.00012992,2]
[336032042,1724673045342,-500.0,0.00012992,2]
[336032043,1724673045351,-500.0,0.00012992,2]
[336032044,1724673045360,-696.0,0.00012992,2]
[336032045,1724673045369,-500.0,0.00012992,2]
[336032046,1724673045378,-500.0,0.00012992,2]
[336032047,1724673045387,-500.0,0.00012992,2]
[336032048,1724673045396,-500.0,0.00012992,2]
[336032049,1724673045406,-500.0,0.00012992,2]
[336032050,1724673045415,-500.0,0.00012992,2]
[336032051,1724673045425,-500.0,0.00012992,2]
[336032052,1724673045434,-500.0,0.00012992,2]
[336032053,1724673045444,-500.0,0.00012992,2]
[336032054,1724673045454,-500.0,0.00012992,2]
[336032055,1724673045464,-500.0,0.00012992,2]
[336032056,1724673045473,-500.0,0.00012992,2]
[336032057,1724673045484,-500.0,0.00012992,2]
[336032058,1724673045494,-500.0,0.00012992,2]
[336032059,1724673045504,-500.0,0.00012992,2]
[336032060,1724673045513,-500.0,0.00012992,2]
[336032061,1724673045522,-500.0,0.00012992,2]
[336032062,1724673045532,-525.39,0.00012992,2]
[336032063,1724673045542,-500.0,0.00012992,2]
[336032064,1724673045551,-664.71,0.00012993,2]
[336032065,1724673045561,-1270.22,0.00012993,2]
[336032066,1724673045570,-502.12998147,0.00012993,2]
[336032067,1724673045579,-1075.81,0.00012993,2]
[336032068,1724673045589,-1075.81,0.00012993,2]
[336032069,1724673045599,-500.0,0.00012993,2]
[336032070,1724673045608,-500.0,0.00012993,2]
[336032071,1724673045617,-1027.6,0.00012993,2]
[336032072,1724673045627,-4000.6,0.00012993,2]
[336032073,1724673045636,-664.71,0.00012994,2]
[336032074,1724673045645,-664.71,0.00012994,2]
[336032075,1724673045655,-664.71,0.00012994,2]
[336032076,1724673045664,-664.71,0.00012994,2]
[336032077,1724673045674,-664.71,0.00012994,2]
[336032078,1724673045683,-656.07,0.00012994,2]
[336032079,1724673045693,-1270.22,0.00012994,2]
[336032080,1724673045702,-1270.22,0.00012994,2]
[336032081,1724673045712,-1270.22,0.00012994,2]
[336032082,1724673045722,-1270.22,0.00012994,2]
[336032083,1724673045732,-1270.22,0.00012994,2]
[336032084,1724673045743,-1075.81,0.00012994,2]
[336032085,1724673045752,-1075.81,0.00012994,2]
[336032086,1724673045761,-1075.81,0.00012994,2]
[336032087,1724673045771,-1075.81,0.00012994,2]
[336032088,1724673045781,-1075.81,0.00012994,2]
[336032089,1724673045794,-500.0,0.00012994,2]
[336032090,1724673045804,-500.0,0.00012994,2]
[336032091,1724673045813,-529.92035407,0.00012994,2]
[336032092,1724673045822,-1027.6,0.00012994,2]
[336032093,1724673045833,-1027.6,0.00012994,2]
[336032094,1724673045843,-1027.6,0.00012994,2]
[336032095,1724673045852,-1027.6,0.00012994,2]
[336032096,1724673045863,-1027.6,0.00012994,2]
[336032097,1724673045872,-4000.6,0.00012994,2]
[336032098,1724673045883,-4000.6,0.00012994,2]
[336032099,1724673045892,-4000.6,0.00012994,2]
[336032100,1724673045902,-4000.6,0.00012994,2]
[336032101,1724673045912,-4000.6,0.00012994,2]
[336032102,1724673045922,-4000.6,0.00012994,2]
[336032103,1724673045931,-4000.6,0.00012994,2]
[336032104,1724673045942,-522.05021628,0.00012995,2]
[336032105,1724673045952,-500.0,0.00012995,2]
[336032106,1724673045962,-500.0,0.00012995,2]
[336032107,1724673045971,-500.0,0.00012995,2]
[336032108,1724673045979,-502.1449473,0.00012995,2]
[336032109,1724673045991,-500.0,0.00012995,2]
[336032110,1724673046000,-1066.07,0.00012995,2]
[336032111,1724673046010,-500.0,0.00012995,2]
[336032112,1724673046019,-500.0,0.00012995,2]
[336032113,1724673046029,-500.0,0.00012995,2]
[336032114,1724673046038,-500.0,0.00012995,2]
[336032115,1724673046048,-500.0,0.00012995,2]
[336032116,1724673046057,-500.0,0.00012995,2]
[336032117,1724673046067,-500.0,0.00012995,2]
[336032118,1724673046076,-500.0,0.00012995,2]
[336032119,1724673046085,-500.0,0.00012995,2]
[336032120,1724673046094,-500.57871281,0.00012995,2]
[336032121,1724673046104,-500.0,0.00012995,2]
[336032122,1724673046113,-500.0,0.00012995,2]
[336032123,1724673046123,-501.17789383,0.00012995,2]
[336032124,1724673046133,-502.22118532,0.00012995,2]
[336032125,1724673046143,-500.0,0.00012995,2]
[336032126,1724673046153,-500.0,0.00012995,2]
[336032127,1724673046162,-1095.02,0.00012995,2]
[336032128,1724673046172,-500.0,0.00012995,2]
[336032129,1724673046181,-500.0,0.00012995,2]
[336032130,1724673046192,-500.0,0.00012995,2]
[336032131,1724673046202,-500.0,0.00012995,2]
[336032132,1724673046213,-500.0,0.00012995,2]